bitfinex-derivatives/quotes_ETHF0:USTF0_20251021
["timestamp","ask_amount","ask_price","bid_price","bid_amount"]
[1761006423101,0.4524,3977.9,3977.8,0.3139]
[1761006423408,0.45243,3977.7,3977.6,0.67825846]
[1761006423606,0.45244,3977.6,3977.5,0.81781032]
[1761006423802,9.36944,3977.6,3977.5,1.13171032]
[1761006424202,9.36944,3977.6,3977.5,0.45345186]
[1761006424705,9.36944,3977.6,3977.5,0.13955186]
[1761006425014,0.45249,3977.1,3977.0,0.4503]
[1761006425307,12.57729,3977.1,3977.0,0.4503]
[1761006425716,8.917,3977.1,3977.0,0.887]
[1761006425901,8.917,3977.1,3977.0,0.88943809]
[1761006427207,8.917,3977.1,3977.0,1.56769655]
[1761006428606,8.917,3977.1,3977.0,1.13099655]
[1761006428802,8.917,3977.1,3977.0,0.13883809]
[1761006428803,13.23816851,3977.1,3977.0,0.13883809]
[1761006429008,13.23816851,3977.1,3977.0,0.00243809]
[1761006429208,12.1248,3977.1,3977.0,0.00243809]
[1761006430517,3.2078,3977.1,3977.0,0.66513809]
[1761006430703,8.918,3977.1,3977.0,0.88303809]
[1761006431413,12.1258,3977.1,3977.0,0.44633809]
[1761006433314,12.57829,3977.1,3977.0,0.66513809]
[1761006434213,12.57829,3977.1,3977.0,0.44633809]
[1761006438718,1.13106,3977.8,3977.0,0.44633809]
[1761006438719,3.2078,3977.5,3977.1,0.77408]
[1761006438926,3.66024,3977.5,3977.4,0.7762]
[1761006439223,12.1268,3977.5,3977.4,0.7762]
[1761006440312,12.57924,3977.5,3977.4,0.3216]
[1761006440817,12.57924,3977.5,3977.4,0.5504]
[1761006441523,3.2078,3977.5,3977.4,0.7762]
[1761006441726,3.6602,3977.9,3977.8,0.7762]
[1761006442027,12.5782,3977.9,3977.8,0.5504]
[1761006444529,12.5782,3977.9,3977.8,0.7762]
[1761006444726,12.5782,3977.9,3977.8,1.88956851]
[1761006445625,12.5782,3977.9,3977.8,0.7762]
[1761006445824,12.5782,3977.9,3977.8,0.5504]
[1761006446027,12.1258,3977.9,3977.8,0.7762]
[1761006446222,0.90437059,3978.6,3977.8,6.88956851]
[1761006446223,3.2078,3978.4,3977.8,6.88956851]
[1761006446421,3.66014,3978.4,3978.3,1.88956851]
[1761006446627,12.58614,3978.4,3978.3,1.88956851]
[1761006446930,9.37834,3978.4,3978.3,1.88956851]
[1761006447526,0.00304316,3978.6,3978.5,0.8974]
[1761006447732,8.92804316,3978.6,3978.5,0.8974]
[1761006448232,9.38036316,3978.6,3978.5,0.8974]
[1761006450127,0.00304316,3978.6,3978.5,0.8974]
[1761006450326,0.00304316,3978.6,3978.5,5.8974]
[1761006451630,0.45536316,3978.6,3978.5,5.8974]
[1761006451824,0.45536316,3978.6,3978.5,0.6896]
[1761006452427,0.45536316,3978.6,3978.5,0.8974]
[1761006454129,0.00304316,3978.6,3978.5,2.01076851]
[1761006454430,8.92204316,3978.6,3978.5,2.01076851]
[1761006455226,9.37436316,3978.6,3978.5,2.01076851]
[1761006456736,8.92204316,3978.6,3978.5,2.01076851]
[1761006457626,0.00304316,3978.6,3978.5,10.67089851]
[1761006457824,3.2078,3979.6,3979.5,0.6896]
[1761006458026,12.1258,3979.6,3979.5,0.6896]
[1761006458636,12.578,3979.6,3979.5,0.6896]
[1761006458947,12.58024889,3979.6,3979.5,0.6896]
[1761006459820,12.58024889,3979.6,3979.5,0.8974]
[1761006459821,12.57924889,3979.6,3979.5,0.8974]
[1761006460232,12.57924889,3979.6,3979.4,1.11336851]
[1761006460233,0.45224,3979.3,3979.2,0.3399]
[1761006460737,9.36924,3979.3,3979.2,0.3399]
[1761006464233,0.45226,3979.1,3979.0,0.1303]
[1761006464536,0.45226,3979.1,3979.0,0.4702]
[1761006465846,0.45229,3978.8,3978.7,0.3399]
[1761006466131,9.36729,3978.8,3978.7,0.3399]
[1761006467636,9.36729,3978.8,3978.7,0.5593]
[1761006467939,9.36729,3978.8,3978.7,0.7671]
[1761006474340,9.36729,3978.8,3978.7,1.44535846]
[1761006474732,0.45229,3978.8,3978.7,1.44535846]
[1761006475241,0.45229,3978.8,3978.7,0.7671]
[1761006477649,0.45444889,3979.6,3979.5,0.481]
[1761006480050,0.45444889,3979.6,3979.5,0.1358]
[1761006480253,0.66446574,3979.6,3979.5,0.481]
[1761006480543,0.45444889,3979.6,3979.5,0.481]
[1761006480748,0.66447008,3979.6,3979.5,0.481]
[1761006481840,0.66447008,3979.6,3979.0,0.81324474]
[1761006481841,0.45226,3979.1,3979.0,0.81324474]
[1761006482042,9.36626,3979.1,3979.0,0.81324474]
[1761006482443,9.36626,3979.1,3979.0,1.15844474]
[1761006483541,9.36626,3979.1,3979.0,1.37304474]
[1761006483748,9.36626,3979.1,3979.0,1.60244474]
[1761006485348,3.66224889,3979.6,3979.5,0.925]
[1761006485539,12.57624889,3979.6,3979.5,0.925]
[1761006485741,12.57624889,3979.6,3979.5,0.6956]
[1761006485941,12.57624889,3979.6,3979.5,0.481]
[1761006485942,12.7862547,3979.6,3979.5,0.481]
[1761006486646,9.36844889,3979.6,3979.5,0.925]
[1761006487749,10.47980049,3979.6,3979.5,0.1358]
[1761006488053,0.45223,3979.4,3979.3,0.3452]
[1761006489950,0.45223,3979.4,3979.3,0.5598]
[1761006490346,4.11137632,3979.6,3979.5,0.3504]
[1761006490552,9.36844889,3979.6,3979.5,2.03695472]
[1761006490752,0.00224889,3979.6,3979.5,0.925]
[1761006490951,0.00224889,3979.6,3979.5,4.1328]
[1761006491159,0.00224889,3979.6,3979.5,4.58501]
[1761006491350,0.00224889,3979.6,3979.5,4.1328]
[1761006491658,0.00224889,3979.6,3979.5,4.58501]
[1761006491949,0.00224889,3979.6,3979.5,4.1328]
[1761006492144,0.45444889,3979.6,3979.5,4.1328]
[1761006492341,0.45444889,3979.6,3979.5,5.03550023]
[1761006494350,0.45444889,3979.6,3979.5,4.1328]
[1761006497755,0.45444889,3979.6,3979.5,4.58501]
[1761006498354,0.45444889,3979.6,3979.5,4.1328]
[1761006498550,0.45444889,3979.6,3979.5,4.80913405]
[1761006498851,0.45444889,3979.6,3979.5,4.1328]
[1761006504260,0.45444889,3979.6,3979.5,5.26134405]
[1761006507257,0.45444889,3979.6,3979.5,4.58501]
[1761006507560,0.00224889,3979.6,3979.5,4.58501]
[1761006507750,4.889e-05,3979.6,3979.5,5.48771023]
[1761006507948,4.889e-05,3979.6,3979.5,4.58501]
[1761006510869,4.889e-05,3979.6,3979.5,9.58501]
[1761006515274,4.889e-05,3979.6,3979.5,9.58501]
[1761006517074,0.45224889,3979.6,3979.5,4.1328]
[1761006517265,0.45224889,3979.6,3979.5,5.03525821]
[1761006517464,0.45224889,3979.6,3979.5,4.80979691]
[1761006518069,0.45224889,3979.6,3979.5,0.925]
[1761006518270,0.45224889,3979.6,3979.5,1.60199691]
[1761006519184,0.45224889,3979.6,3979.5,0.6956]
[1761006519777,5.45224889,3979.6,3979.5,0.481]
[1761006521474,5.45224889,3979.6,3979.5,0.6968]
[1761006522975,5.45224889,3979.6,3979.5,0.481]
[1761006523979,5.45224889,3979.6,3979.5,0.9207]
[1761006527783,0.45224889,3979.6,3979.5,0.9207]
[1761006528482,0.45224889,3979.6,3979.5,4.1285]
[1761006533488,4.889e-05,3979.6,3979.5,4.91250691]
[1761006534586,0.45224889,3979.6,3979.5,5.24500691]
[1761006534885,0.45224889,3979.6,3979.5,4.79279691]
[1761006535089,0.45224889,3979.6,3979.5,4.1158]
[1761006538295,0.45224889,3979.6,3979.5,0.908]
[1761006538798,0.45224889,3979.6,3979.5,0.4683]
[1761006538799,8.66004889,3979.6,3979.5,0.4683]
[1761006539498,8.66004889,3979.6,3979.5,0.4527]
[1761006539900,8.66004889,3979.6,3979.5,0.672]
[1761006540201,3.66004889,3979.6,3979.5,0.672]
[1761006540498,0.45224889,3979.6,3979.5,0.8992]
[1761006546197,0.45224889,3979.6,3979.5,1.57619691]
[1761006551697,0.45224889,3979.6,3979.5,4.107]
[1761006552905,0.45224889,3979.6,3979.5,4.55921]
[1761006553206,4.889e-05,3979.6,3979.5,4.24231]
[1761006553399,0.45224889,3979.6,3979.5,4.24231]
[1761006553604,0.45224889,3979.6,3979.5,3.7901]
[1761006553803,0.45224889,3979.6,3979.5,0.8992]
[1761006554002,0.45224889,3979.6,3979.5,1.57741091]
[1761006554304,0.45224889,3979.6,3979.5,0.8992]
[1761006555403,9.36124889,3979.6,3979.5,0.672]
[1761006556407,9.36124889,3979.6,3979.5,0.4527]
[1761006556896,9.36124889,3979.6,3979.5,0.6709]
[1761006557608,9.36124889,3979.6,3979.5,0.4527]
[1761006557904,15.47605639,3979.6,3979.5,0.4527]
[1761006558305,14.57371007,3979.6,3979.5,0.4527]
[1761006558699,14.57367883,3979.6,3979.5,0.4527]
[1761006559203,0.66467883,3979.6,3979.5,0.6709]
[1761006559403,9.36124889,3979.6,3979.5,0.89]
[1761006560302,4.889e-05,3979.6,3979.5,0.5731]
[1761006560509,4.889e-05,3979.6,3979.5,1.02531]
[1761006561106,0.45224889,3979.6,3979.5,0.5731]
[1761006561408,0.45224889,3979.6,3979.5,0.9099]
[1761006562504,0.45224889,3979.6,3979.5,2.02137103]
[1761006563804,0.45224889,3979.6,3979.5,2.69927583]
[1761006564510,0.45224889,3979.6,3979.5,1.5878048]
[1761006577924,0.45224889,3979.6,3979.5,2.0400148]
[1761006578121,0.45224889,3979.6,3979.5,1.36211]
[1761006578319,0.45224889,3979.6,3979.5,0.9099]
[1761006580628,0.45224889,3979.6,3979.5,1.5878685]
[1761006583623,0.45224889,3979.6,3979.5,1.3687685]
[1761006583624,6.56371992,3979.6,3979.5,1.3687685]
[1761006583825,6.56371992,3979.6,3979.0,5.60415015]
[1761006583826,0.45226,3979.1,3979.0,0.4775]
[1761006584023,10.46873103,3979.1,3979.0,0.4775]
[1761006584224,10.46873103,3979.1,3979.0,0.7035]
[1761006585231,10.46873103,3979.1,3979.0,0.4775]
[1761006589431,9.35726,3979.1,3979.0,0.7035]
[1761006593222,9.35726,3979.1,3979.0,0.9217]
[1761006593422,0.45225,3979.2,3979.1,0.7859]
[1761006593629,9.35725,3979.2,3979.1,0.7859]
[1761006597643,0.45225,3979.2,3979.1,0.7859]
[1761006597940,9.35725,3979.2,3979.1,0.7859]
[1761006600240,0.45224889,3979.6,3979.5,0.1254]
[1761006600442,4.889e-05,3979.6,3979.5,1.91228103]
[1761006600637,0.45224889,3979.6,3979.5,1.46007103]
[1761006600939,0.45224889,3979.6,3979.5,0.4583]
[1761006601141,0.45224889,3979.6,3979.5,2.00467103]
[1761006601731,0.45224889,3979.6,3979.5,0.67]
[1761006601935,0.45224889,3979.6,3979.5,0.4583]
[1761006602242,0.45224889,3979.6,3979.5,0.67]
[1761006602644,0.45224889,3979.6,3979.5,0.8932]
[1761006603139,4.889e-05,3979.6,3979.5,0.5603]
[1761006603344,9.35624889,3979.6,3979.5,0.5603]
[1761006603733,9.35624889,3979.6,3979.5,0.8932]
[1761006604143,0.45224889,3979.6,3979.5,0.8932]
[1761006605037,4.889e-05,3979.6,3979.5,1.34541]
[1761006605242,4.889e-05,3979.6,3979.5,1.01251]
[1761006605442,0.45224889,3979.6,3979.5,1.01251]
[1761006605644,0.45224889,3979.6,3979.5,1.34541]
[1761006605945,4.889e-05,3979.6,3979.5,1.01251]
[1761006606446,0.45224889,3979.6,3979.5,1.01251]
[1761006606748,4.889e-05,3979.6,3979.5,1.01251]
[1761006606947,4.889e-05,3979.6,3979.5,6.01251]
[1761006607445,4.889e-05,3979.6,3979.5,6.68955133]
[1761006607632,4.889e-05,3979.6,3979.5,1.23734133]
[1761006607837,0.45224889,3979.6,3979.5,1.57024133]
[1761006608045,8.903,3980.0,3979.9,0.2117]
[1761006608246,8.903,3980.0,3979.9,0.5446]
[1761006608436,9.35516,3980.0,3979.9,0.5446]
[1761006608937,9.35735324,3980.0,3979.9,0.771023]
[1761006609950,0.00219324,3980.0,3979.9,0.771023]
[1761006610145,0.00219324,3980.0,3979.9,1.223193]
[1761006610748,0.00219324,3980.0,3979.9,0.547823]
[1761006611353,0.00219324,3980.0,3979.9,0.771023]
[1761006612743,0.00219324,3980.0,3979.9,2.10437457]
[1761006615550,0.45435324,3980.0,3979.9,2.10437457]
[1761006616451,0.45435324,3980.0,3979.9,0.336123]
[1761006616656,0.45435324,3980.0,3979.9,0.552323]
[1761006616954,0.45435324,3980.0,3979.9,0.766423]
[1761006617855,0.45435324,3980.0,3979.9,0.336123]
[1761006620854,5.45435324,3980.0,3979.9,0.003223]
[1761006621056,6.56924653,3980.0,3979.9,3e-06]
[1761006621358,5.66707942,3980.0,3979.9,3e-06]
[1761006621962,7.0205989,3980.0,3979.9,3e-06]
[1761006622564,1.13052,3979.6,3979.1,0.3394]
[1761006622763,0.45225,3979.2,3979.1,0.3394]
[1761006623056,0.45225,3979.2,3979.1,0.7697]
[1761006623256,0.45225,3979.2,3979.1,0.5556]
[1761006623462,0.45225,3979.2,3979.1,0.34156766]
[1761006623962,0.45225,3979.2,3979.1,0.55776766]
[1761006624862,0.45225,3979.2,3979.1,0.77186766]
[1761006625264,0.45218,3979.8,3979.7,0.4303]
[1761006625565,9.35318,3979.8,3979.7,2.10305157]
[1761006625766,0.00219324,3980.0,3979.9,0.7697]
[1761006625767,0.45435324,3980.0,3979.9,0.7697]
[1761006625969,9.35535324,3980.0,3979.9,0.7697]
[1761006626863,9.35535324,3980.0,3979.9,0.3394]
[1761006627956,9.35535324,3980.0,3979.9,0.5556]
[1761006628162,9.35535324,3980.0,3979.9,0.7674]
[1761006628364,9.35535324,3980.0,3979.9,0.3394]
[1761006628764,9.56813321,3980.0,3979.9,0.3394]
[1761006629063,9.56813321,3980.0,3979.5,0.129]
[1761006629064,0.4522,3979.6,3979.5,0.129]
[1761006629257,9.3522,3979.6,3979.5,0.129]
[1761006629462,9.56498255,3979.6,3979.5,0.4535]
[1761006629661,9.3522,3979.6,3979.5,0.884]
[1761006634471,9.3522,3979.6,3979.5,0.4535]
[1761006635169,0.45225,3979.2,3979.1,0.00216766]
[1761006635360,9.35225,3979.2,3979.1,0.00216766]
[1761006636979,0.45232,3978.6,3978.5,0.1303]
[1761006637165,9.35232,3978.6,3978.5,0.5608]
[1761006637366,9.35232,3978.6,3978.5,0.8853]
[1761006637969,9.35232,3978.6,3978.5,0.88834579]
[1761006638770,0.45226,3979.1,3979.0,0.1268]
[1761006638965,0.45226,3979.1,3979.0,0.5573]
[1761006639172,0.45219,3979.7,3979.6,0.4305]
[1761006639370,0.45219,3979.7,3979.6,0.755]
[1761006639371,8.06319,3979.7,3979.6,0.755]
[1761006639568,9.35319,3979.7,3979.6,0.755]
[1761006646982,9.35319,3979.7,3979.6,0.3245]
[1761006647176,9.35319,3979.7,3979.6,0.5432]
[1761006647879,9.35319,3979.7,3979.6,0.3245]
[1761006652079,9.35319,3979.7,3979.6,0.5432]
[1761006652378,9.35319,3979.7,3979.6,0.755]
[1761006658385,9.35319,3979.7,3979.6,0.5432]
[1761006658675,9.35319,3979.7,3979.6,0.3245]
[1761006659583,9.35319,3979.7,3979.6,0.5505]
[1761006660280,9.35319,3979.7,3979.6,0.3245]
[1761006660773,0.45223,3979.4,3979.3,0.3176]
[1761006660981,0.45229,3978.8,3978.6,0.67620482]
[1761006661181,2.26126,3979.2,3978.5,0.45094579]
[1761006661182,0.45232,3978.6,3978.5,0.45094579]
[1761006661383,9.35132,3978.6,3978.5,0.45094579]
[1761006662989,9.35132,3978.6,3978.5,0.67694579]
[1761006663987,9.35132,3978.6,3978.5,0.45094579]
[1761006664286,9.35132,3978.6,3978.5,0.00304579]
[1761006664587,9.35132,3978.6,3978.5,0.32064579]
[1761006664881,9.35132,3978.6,3978.5,0.00304579]
[1761006666288,9.35132,3978.6,3978.5,0.45004579]
[1761006666790,9.35132,3978.6,3978.5,0.00304579]
[1761006667290,14.35132,3978.6,3978.5,0.00304579]
[1761006668688,14.5623686,3978.6,3978.5,0.00304579]
[1761006669487,14.35132,3978.6,3978.5,0.32064579]
[1761006669686,9.35132,3978.6,3978.5,0.45004579]
[1761006670393,9.35232,3978.6,3978.5,0.45004579]
[1761006670581,9.35232,3978.6,3978.5,0.67604579]
[1761006670780,0.45232,3978.6,3978.5,0.90154579]
[1761006670979,9.35232,3978.6,3978.5,0.90154579]
[1761006672081,1.13059,3979.4,3978.6,0.3176]
[1761006672279,0.45226,3979.1,3979.0,0.5809]
[1761006672475,9.35226,3979.1,3979.0,0.5809]
[1761006672682,9.35226,3979.1,3979.0,2.01025103]
[1761006672885,9.35226,3979.1,3979.0,0.447]
[1761006675092,9.35226,3979.1,3979.0,0.8985]
[1761006676083,9.35226,3979.1,3979.0,2.01025103]
[1761006678587,41.25219,3979.7,3979.6,0.3225]
[1761006678788,50.15219,3979.7,3979.6,0.3225]
[1761006679583,41.25219,3979.7,3979.6,0.3225]
[1761006679789,50.15219,3979.7,3979.6,0.7523]
[1761006680387,9.35219,3979.7,3979.6,0.531]
[1761006681292,9.35219,3979.7,3979.6,0.7523]
[1761006684905,0.45435324,3980.0,3979.9,0.531]
[1761006685092,9.35335324,3980.0,3979.9,1.64275103]
[1761006686194,9.35335324,3980.0,3979.9,0.3225]
[1761006686400,0.4522,3979.6,3979.5,0.1382]
[1761006686600,9.3512,3979.6,3979.5,0.1382]
[1761006686796,9.3512,3979.6,3979.5,0.4607]
[1761006689102,9.3512,3979.6,3979.5,0.6692]
[1761006690502,9.3512,3979.6,3979.5,0.4607]
[1761006692302,9.3512,3979.6,3979.5,0.1382]
[1761006692504,9.3512,3979.6,3979.5,0.4836]
[1761006693597,9.3512,3979.6,3979.5,0.1382]
[1761006693907,0.45224,3979.3,3979.2,0.3454]
[1761006694205,9.35024,3979.3,3979.2,0.3454]
[1761006694406,9.35024,3979.3,3979.2,0.557]
[1761006694806,9.35024,3979.3,3979.2,0.3454]
[1761006696704,9.35024,3979.3,3979.2,0.7856]
[1761006699817,9.35024,3979.3,3979.2,0.3454]
[1761006701816,9.35024,3979.3,3979.2,0.557]
[1761006702217,9.35024,3979.3,3979.2,0.7856]
[1761006703615,2.03027045,3979.9,3979.6,0.557]
[1761006703814,9.56181249,3979.8,3979.7,0.3454]
[1761006704320,10.46164294,3979.8,3979.7,0.3454]
[1761006706422,0.45223,3979.4,3979.3,0.3454]
[1761006706615,0.45225,3979.2,3979.1,1.02097625]
[1761006706815,0.45225,3979.2,3979.1,0.3454]
[1761006707217,0.45225,3979.2,3979.1,1.02097625]
[1761006707525,0.45225,3979.2,3979.1,0.3454]
[1761006708019,0.45225,3979.2,3979.1,0.557]
[1761006709226,0.45225,3979.2,3979.1,0.3454]
[1761006711426,0.45225,3979.2,3979.1,0.557]
[1761006711732,0.45225,3979.2,3979.1,0.3454]
[1761006712428,0.45225,3979.2,3979.1,0.557]
[1761006717326,0.45225,3979.2,3979.1,0.3454]
[1761006718234,0.45226,3979.1,3979.0,0.4719]
[1761006718533,0.66501462,3979.1,3979.0,0.4719]
[1761006721233,0.45226,3979.1,3979.0,0.4719]
[1761006721425,0.45226,3979.1,3979.0,0.8978]
[1761006721932,0.4522,3979.6,3979.5,0.9019]
[1761006722130,9.55995965,3979.6,3979.5,2.01365103]
[1761006725541,9.55995965,3979.6,3979.5,0.9019]
[1761006725740,9.55995965,3979.6,3979.5,0.6894]
[1761006726040,10.4597901,3979.6,3979.5,0.6894]
[1761006732043,10.46004856,3979.6,3979.5,0.6894]
[1761006733146,10.46004856,3979.6,3979.5,0.9019]
[1761006736449,0.4523,3978.7,3978.6,0.67777541]
[1761006736644,0.45232,3978.6,3978.3,0.90422006]
[1761006736845,0.45232,3978.6,3978.5,0.81056865]
[1761006737038,0.45232,3978.6,3978.5,3.3e-07]
[1761006737238,0.4524,3977.9,3977.8,0.3439]
[1761006737433,9.55927644,3977.9,3977.8,0.3439]
[1761006737640,0.45243,3977.6,3977.3,0.90422006]
[1761006737946,9.34643,3977.6,3977.3,0.90422006]
[1761006738145,9.34643,3977.6,3977.5,0.47457168]
[1761006738740,9.34643,3977.6,3977.5,0.68347168]
[1761006739043,9.34643,3977.6,3977.5,0.90607168]
[1761006739746,8.894,3977.6,3977.5,0.90607168]
[1761006740835,1.13082,3978.6,3978.5,0.9037]
[1761006740836,0.45232,3978.6,3978.5,0.9037]
[1761006741039,8.895,3978.7,3978.6,0.4315]
[1761006741746,8.895,3978.7,3978.6,0.7754]
[1761006743047,0.45223,3979.4,3979.3,0.2089]
[1761006743349,0.45223,3979.4,3979.3,0.5528]
[1761006743350,9.34723,3979.4,3979.3,0.5528]
[1761006744651,9.34723,3979.4,3979.3,0.7754]
[1761006745053,9.34723,3979.4,3979.3,0.3439]
[1761006745253,9.34723,3979.4,3979.0,0.1283]
[1761006745254,0.45226,3979.2,3979.0,0.1283]
[1761006745444,0.45226,3979.2,3979.1,0.2226]
[1761006745650,0.45226,3979.2,3979.1,0.7754]
[1761006746351,0.45226,3979.2,3979.1,0.3439]
[1761006749051,0.45226,3979.1,3979.0,0.1283]
[1761006749353,0.45226,3979.1,3979.0,0.4474]
[1761006750857,0.45226,3979.1,3979.0,0.8793]
[1761006751553,0.45224,3979.3,3979.1,0.3191]
[1761006751859,9.34723,3979.4,3979.3,0.751]
[1761006755559,9.34723,3979.4,3979.3,0.5281]
[1761006758964,9.34723,3979.4,3979.3,0.751]
[1761006760353,9.34723,3979.4,3979.3,0.5281]
[1761006760553,9.34723,3979.4,3979.3,0.3191]
[1761006764460,9.34723,3979.4,3979.3,0.5281]
[1761006764662,9.34723,3979.4,3979.3,0.751]
[1761006766461,8.895,3979.4,3979.3,0.751]
[1761006766767,9.34723,3979.4,3979.3,0.751]
[1761006767468,9.34723,3979.4,3979.3,0.5281]
[1761006767768,9.34723,3979.4,3979.3,0.3191]
[1761006768163,0.45226,3979.1,3979.0,0.1283]
[1761006768469,9.34426,3979.1,3979.0,0.1283]
[1761006768659,9.34426,3979.1,3979.0,0.4474]
[1761006770365,9.34426,3979.1,3979.0,0.1283]
[1761006770568,9.55773107,3979.1,3979.0,0.4474]
[1761006770761,0.45232,3978.6,3978.5,1.03252006]
[1761006770961,0.45237,3978.1,3978.0,0.1283]
[1761006771161,9.34437,3978.1,3978.0,0.4474]
[1761006771467,0.45242,3977.7,3977.5,1.03489174]
[1761006771774,8.892,3977.6,3977.5,0.44977168]
[1761006776171,44.0078,3978.2,3977.6,0.3191]
[1761006776366,9.34537,3978.1,3978.0,0.8894]
[1761006778174,9.34537,3978.1,3978.0,0.6665]
[1761006778373,0.45243,3977.6,3977.5,4.6724222]
[1761006778675,0.45243,3977.6,3977.5,3.56347168]
[1761006778981,0.45243,3977.6,3977.5,3.88907168]
[1761006782967,0.45243,3977.6,3977.5,3.66407168]
[1761006783172,0.45243,3977.6,3977.5,0.45627168]
[1761006785181,0.45243,3977.6,3977.5,0.68127168]
[1761006785880,0.45243,3977.6,3977.5,0.89747168]
[1761006789078,0.45243,3977.6,3977.5,0.68127168]
[1761006790886,0.45243,3977.6,3977.5,0.45627168]
[1761006791284,3.66023,3977.6,3977.5,0.00237168]
[1761006792185,3.66023,3977.6,3977.5,0.45437168]
[1761006792782,3.66023,3977.6,3977.5,0.89557168]
[1761006792983,0.45243,3977.6,3977.5,0.89557168]
[1761006796979,0.45243,3977.6,3977.5,0.45437168]
[1761006797181,0.45243,3977.6,3975.8,1.13158]
[1761006797182,1.13116,3977.4,3976.7,0.67644409]
[1761006797484,0.45258,3976.3,3976.2,0.3337]
[1761006797681,0.45258,3976.3,3975.6,1.11271806]
[1761006797682,0.45262,3975.9,3975.8,0.3337]
[1761006797891,10.45833806,3975.9,3975.8,0.3337]
[1761006798189,18.66924604,3975.9,3975.8,0.00231808]
[1761006798592,0.45269,3975.3,3975.2,0.3337]
[1761006798894,0.45272,3975.1,3975.0,0.1364]
[1761006799486,0.45272,3975.1,3975.0,0.47289168]
[1761006799890,0.45272,3975.1,3974.0,0.1364]
[1761006799891,0.45283,3974.2,3974.0,0.3493]
[1761006800187,8.894,3974.1,3974.0,0.3493]
[1761006800386,8.894,3974.1,3974.0,0.4701]
[1761006800886,8.894,3974.1,3974.0,0.47279679]
[1761006801288,0.45289,3973.6,3973.5,0.4701]
[1761006801593,0.45294,3973.1,3973.0,0.4701]
[1761006801791,9.34794,3973.1,3973.0,0.4701]
[1761006802283,9.34794,3973.1,3973.0,0.00319055]
[1761006802284,9.34995316,3973.1,3973.0,0.00319055]
[1761006802486,50.14995316,3973.1,3973.0,0.00319055]
[1761006802686,49.69701316,3973.1,3973.0,0.90289055]
[1761006802882,8.89801316,3973.1,3973.0,0.90289055]
[1761006804698,8.89801316,3973.1,3973.0,5.90289055]
[1761006804699,8.89901316,3973.1,3973.0,5.90289055]
[1761006805984,3.2078,3973.7,3973.5,0.4701]
[1761006806191,3.2078,3974.2,3973.7,0.3337]
[1761006806384,3.2078,3974.2,3974.1,0.5466]
[1761006806591,12.1058,3974.2,3974.1,0.7633]
[1761006807195,12.10865352,3974.2,3974.1,0.7633]
[1761006808387,12.10965352,3974.2,3974.1,0.7633]
[1761006809193,0.00285352,3974.2,3974.1,0.7633]
[1761006809399,8.90185352,3974.2,3974.1,0.7633]
[1761006810099,8.90185352,3974.2,3974.1,0.3337]
[1761006810398,8.90185352,3974.2,3974.0,0.4831]
[1761006810399,0.45283,3974.1,3974.0,0.4831]
[1761006811097,12.10965352,3974.2,3974.0,0.4831]
[1761006811098,8.90185352,3974.2,3974.1,0.3467]
[1761006811283,8.90185352,3974.2,3974.1,0.5697]
[1761006812399,8.90185352,3974.2,3974.1,0.7779]
[1761006815090,8.90285352,3974.2,3974.1,0.7779]
[1761006815804,8.90285352,3974.2,3974.1,1.23073]
[1761006817203,0.00285352,3974.2,3974.1,1.23073]
[1761006817506,3.2078,3975.2,3975.1,0.7779]
[1761006817707,3.2078,3976.2,3975.6,0.3467]
[1761006817895,0.45258,3976.4,3976.1,0.4312]
[1761006818101,3.66034,3976.7,3976.6,0.7779]
[1761006818297,10.61934,3976.7,3976.6,0.7779]
[1761006818496,10.16883087,3976.7,3976.6,0.78062729]
[1761006818904,0.00203087,3976.7,3976.6,4.44096729]
[1761006819405,8.906,3977.0,3976.9,0.7779]
[1761006820401,8.90793381,3977.0,3976.9,0.7779]
[1761006826107,4.33878,3978.0,3976.9,0.7779]
[1761006826108,3.2078,3978.0,3976.9,0.4312]
[1761006826318,7.7164,3977.9,3977.8,0.5697]
[1761006826513,7.7164,3977.9,3977.8,0.7779]
[1761006827111,7.71840512,3977.9,3977.8,0.3467]
[1761006827414,0.45243,3977.6,3977.5,0.3522]
[1761006827809,0.45243,3977.6,3977.5,0.6989]
[1761006832415,0.45243,3977.6,3977.5,0.9071]
[1761006833616,7.26600512,3977.9,3977.1,3.2078]
[1761006833617,0.45248,3977.2,3977.1,3.4308]
[1761006833818,0.45248,3977.2,3977.1,3.2078]
[1761006834117,0.45248,3977.2,3977.1,3.7775]
[1761006835417,0.45248,3977.2,3977.1,3.9857]
[1761006836318,0.45248,3977.2,3977.1,3.7775]
[1761006836513,0.45248,3977.2,3977.1,0.3467]
[1761006836715,0.45252,3976.8,3976.7,3.5545]
[1761006836923,9.34752,3976.8,3976.7,3.5545]
[1761006837215,9.34752,3976.8,3976.7,0.3467]
[1761006838017,9.34752,3976.8,3976.7,0.5697]
[1761006838519,9.34752,3976.8,3976.7,0.7784]
[1761006840515,9.34752,3976.8,3976.7,0.3467]
[1761006840913,9.34752,3976.8,3976.7,0.5557]
[1761006841214,9.34752,3976.8,3976.7,0.7644]
[1761006844214,9.34752,3976.8,3976.7,0.3467]
[1761006844512,9.34752,3976.8,3976.7,4.42473]
[1761006844513,8.895,3976.8,3976.7,4.42473]
[1761006845120,8.895,3976.8,3976.7,9.42473]
[1761006846422,9.34748,3977.2,3977.1,0.76848]
[1761006846725,9.34748,3977.2,3977.1,1.18618]
[1761006847319,9.34748,3977.2,3977.1,0.7337]
[1761006848726,9.34748,3977.2,3977.1,1.18619]
[1761006849117,3.2078,3977.6,3977.1,0.7337]
[1761006849328,3.66023,3977.6,3977.5,0.8656]
[1761006849525,12.76777904,3977.6,3977.5,0.8656]
[1761006849819,12.55523,3977.6,3977.5,0.8656]
[1761006851829,12.55523,3977.6,3977.5,0.4479]
[1761006854232,0.45248,3977.2,3977.1,0.316]
[1761006854530,9.34648,3977.2,3977.1,0.316]
[1761006854925,8.894,3977.2,3977.1,1.18619]